bitfinex/quotes_BTCUSD_20241101
["timestamp","ask_amount","ask_price","bid_price","bid_amount"]
[1730440270677,0.000822,69610.0,69609.0,0.09721125]
[1730440270878,0.000822,69610.0,69609.0,0.10327332]
[1730440273579,0.000822,69610.0,69609.0,0.18637332]
[1730440279713,0.000822,69610.0,69609.0,0.09048212]
[1730440279938,0.16860853,69610.0,69609.0,0.09048212]
[1730440280152,0.16860853,69610.0,69609.0,0.00738212]
[1730440280804,0.16860853,69610.0,69609.0,0.00132005]
[1730440281244,0.16860853,69610.0,69609.0,0.0073689]
[1730440281472,0.16860853,69610.0,69609.0,0.00132005]
[1730440281684,0.16860853,69610.0,69609.0,0.00737021]
[1730440281879,0.16860853,69610.0,69609.0,0.00132005]
[1730440282122,0.16860853,69610.0,69609.0,0.00737021]
[1730440282300,0.16860853,69610.0,69609.0,0.00132005]
[1730440282588,0.16860853,69610.0,69609.0,0.00737021]
[1730440282798,0.16860853,69610.0,69609.0,0.00132005]
[1730440283007,0.16860853,69610.0,69609.0,0.00737021]
[1730440284388,0.144479,69610.0,69609.0,0.00737021]
[1730440294883,0.144479,69610.0,69609.0,0.00132005]
[1730440295095,0.144479,69610.0,69609.0,0.00738098]
[1730440295361,0.144479,69610.0,69609.0,0.00132005]
[1730440295582,0.144479,69610.0,69609.0,0.00738098]
[1730440295787,0.144479,69610.0,69609.0,0.00132005]
[1730440295995,0.2263879,69610.0,69609.0,0.00738098]
[1730440296204,0.2263879,69610.0,69609.0,0.00132005]
[1730440296408,0.2263879,69610.0,69609.0,0.00738098]
[1730440296616,0.2263879,69610.0,69609.0,0.00132005]
[1730440297248,0.2263879,69610.0,69609.0,0.00738098]
[1730440297485,0.2263879,69610.0,69609.0,0.00132005]
[1730440297704,0.2263879,69610.0,69609.0,0.00738098]
[1730440297935,0.2263879,69610.0,69609.0,0.00132005]
[1730440298152,0.2263879,69610.0,69609.0,0.00738098]
[1730440298362,0.2263879,69610.0,69609.0,0.00132005]
[1730440298568,0.2263879,69610.0,69609.0,0.00738098]
[1730440298774,0.2263879,69610.0,69609.0,0.00132005]
[1730440298979,0.2263879,69610.0,69609.0,0.00738098]
[1730440299215,0.2263879,69610.0,69609.0,0.00132005]
[1730440299423,0.2263879,69610.0,69609.0,0.00738098]
[1730440299629,0.2263879,69610.0,69609.0,0.00132005]
[1730440299830,0.2263879,69610.0,69609.0,0.00738011]
[1730440300033,0.2263879,69610.0,69609.0,0.00132005]
[1730440300242,0.2263879,69610.0,69609.0,0.00738011]
[1730440300463,0.2263879,69610.0,69609.0,0.00132005]
[1730440300671,0.2263879,69610.0,69609.0,0.00738011]
[1730440300872,0.2263879,69610.0,69609.0,0.00132005]
[1730440301079,0.2263879,69610.0,69609.0,0.00738011]
[1730440301292,0.2263879,69610.0,69609.0,0.00132005]
[1730440301504,0.2263879,69610.0,69609.0,0.00738011]
[1730440301741,0.2263879,69610.0,69609.0,0.00132005]
[1730440301945,0.2263879,69610.0,69609.0,0.00738011]
[1730440302151,0.2263879,69610.0,69609.0,0.00132005]
[1730440302375,0.2263879,69610.0,69609.0,0.00738011]
[1730440302591,0.2263879,69610.0,69609.0,0.00132005]
[1730440302798,0.2263879,69610.0,69609.0,0.00738011]
[1730440303005,0.2263879,69610.0,69609.0,0.00132005]
[1730440303217,0.2263879,69610.0,69609.0,0.00738011]
[1730440303450,0.2263879,69610.0,69609.0,0.00132005]
[1730440303673,0.2263879,69610.0,69609.0,0.00738011]
[1730440303882,0.2263879,69610.0,69609.0,0.00132005]
[1730440304097,0.2263879,69610.0,69609.0,0.00738011]
[1730440304317,0.2263879,69610.0,69609.0,0.00132005]
[1730440304539,0.2263879,69610.0,69609.0,0.00738011]
[1730440304770,0.2263879,69610.0,69609.0,0.00132005]
[1730440304977,0.2263879,69610.0,69609.0,0.00738243]
[1730440305181,0.2263879,69610.0,69609.0,0.00132005]
[1730440305413,0.2263879,69610.0,69609.0,0.00738243]
[1730440318926,0.2263879,69610.0,69609.0,0.00408809]
[1730440319099,0.2263879,69610.0,69609.0,0.00599409]
[1730440319527,0.143661,69608.0,69607.0,0.001644]
[1730440319742,0.18123454,69608.0,69607.0,0.001644]
[1730440326589,0.18123454,69608.0,69607.0,0.00763809]
[1730440326799,0.19470905,69608.0,69607.0,0.001644]
[1730440327013,0.19470905,69608.0,69607.0,0.00763809]
[1730440327245,0.18123454,69608.0,69607.0,0.00763809]
[1730440327470,0.19470968,69608.0,69607.0,0.00763809]
[1730440330926,0.18123454,69608.0,69607.0,0.00763809]
[1730440331164,0.19471213,69608.0,69607.0,0.00763809]
[1730440333777,0.05105113,69608.0,69607.0,0.00763809]
[1730440334001,0.05105113,69608.0,69607.0,0.10213809]
[1730440334216,0.01347759,69608.0,69607.0,0.24580109]
[1730440334438,0.01347759,69608.0,69607.0,0.34169229]
[1730440334663,0.000822,69609.0,69608.0,0.143661]
[1730440334886,0.01430025,69609.0,69608.0,0.143661]
[1730440335095,0.01430025,69609.0,69608.0,0.14997129]
[1730440336217,0.01430025,69609.0,69608.0,0.4227355]
[1730440336424,0.000822,69610.0,69609.0,0.317659]
[1730440336843,0.000822,69610.0,69609.0,0.32396413]
[1730440340860,0.000822,69610.0,69609.0,0.54422536]
[1730440341278,0.000822,69610.0,69609.0,0.36706814]
[1730440342279,0.000822,69610.0,69609.0,0.32396413]
[1730440354234,0.000822,69610.0,69609.0,0.55831058]
[1730440355079,0.000822,69610.0,69609.0,0.56331058]
[1730440355291,0.000822,69610.0,69609.0,0.46741938]
[1730440361926,0.000822,69610.0,69609.0,0.14996413]
[1730440364798,0.000822,69610.0,69609.0,0.15160813]
[1730440365437,0.01429388,69610.0,69609.0,0.15160813]
[1730440367249,0.000822,69610.0,69609.0,0.15160813]
[1730440367472,0.01429427,69610.0,69609.0,0.15160813]
[1730440371306,0.01429327,69610.0,69609.0,0.15160813]
[1730440373341,0.01429327,69610.0,69609.0,0.00794913]
[1730440373586,0.15795027,69610.0,69609.0,0.001644]
[1730440373783,0.2123657,69610.0,69609.0,0.001644]
[1730440374012,0.2891657,69610.0,69609.0,0.001644]
[1730440374218,0.2891657,69610.0,69609.0,0.00827157]
[1730440374944,0.28916302,69610.0,69609.0,0.00827157]
[1730440375720,0.28916302,69610.0,69609.0,0.001644]
[1730440381474,0.28915573,69610.0,69609.0,0.001644]
[1730440382538,0.37955573,69610.0,69609.0,0.001644]
[1730440385738,0.51801098,69610.0,69609.0,0.001644]
[1730440385964,0.51800312,69610.0,69609.0,0.001644]
[1730440387807,0.46358769,69610.0,69609.0,0.001644]
[1730440389433,0.46358774,69610.0,69609.0,0.001644]
[1730440391559,0.45013425,69610.0,69609.0,0.001644]
[1730440398372,0.144479,69610.0,69609.0,0.001644]
[1730440400439,0.15793858,69610.0,69609.0,0.001644]
[1730440400886,0.144479,69610.0,69609.0,0.001644]
[1730440401084,0.15793858,69610.0,69609.0,0.001644]
[1730440411805,0.144479,69610.0,69609.0,0.001644]
[1730440412036,0.15795717,69610.0,69609.0,0.001644]
[1730440415402,0.1579586,69610.0,69609.0,0.001644]
[1730440417033,0.39144261,69610.0,69609.0,0.001644]
[1730440418636,0.48714261,69610.0,69609.0,0.001644]
[1730440418851,0.47366301,69610.0,69609.0,0.001644]
[1730440419066,0.48713925,69610.0,69609.0,0.001644]
[1730440419302,0.53021516,69610.0,69609.0,0.001644]
[1730440420902,0.62610636,69610.0,69609.0,0.001644]
[1730440421136,0.61263012,69610.0,69609.0,0.001644]
[1730440421363,0.6261052,69610.0,69609.0,0.001644]
[1730440422106,0.6261294,69610.0,69609.0,0.001644]
[1730440422336,0.58302929,69610.0,69609.0,0.001644]
[1730440423088,0.58802929,69610.0,69609.0,0.001644]
[1730440424223,0.65267946,69610.0,69609.0,0.001644]
[1730440426042,0.65268308,69610.0,69609.0,0.001644]
[1730440426919,0.65272508,69610.0,69609.0,0.001644]
[1730440429468,0.58803269,69610.0,69609.0,0.001644]
[1730440430891,0.49300393,69610.0,69609.0,0.001644]
[1730440431340,0.49300253,69610.0,69609.0,0.001644]
[1730440433127,0.47952545,69610.0,69609.0,0.001644]
[1730440433355,0.49300229,69610.0,69609.0,0.001644]
[1730440434246,0.39730229,69610.0,69609.0,0.001644]
[1730440436916,0.39730236,69610.0,69609.0,0.001644]
[1730440438474,0.46198993,69610.0,69609.0,0.001644]
[1730440438676,0.39730236,69610.0,69609.0,0.001644]
[1730440439546,0.46198976,69610.0,69609.0,0.001644]
[1730440439782,0.36109856,69610.0,69609.0,0.001644]
[1730440440049,0.22264331,69610.0,69609.0,0.098444]
[1730440440268,0.22264331,69610.0,69609.0,0.181544]
[1730440440516,0.22264331,69610.0,69609.0,0.18821854]
[1730440440731,0.15795591,69610.0,69609.0,0.18821854]
[1730440440941,0.22264295,69610.0,69609.0,0.18821854]
[1730440441796,0.25297842,69610.0,69609.0,0.18821854]
[1730440442226,0.2529788,69610.0,69609.0,0.18821854]
[1730440443277,0.22264333,69610.0,69609.0,0.18821854]
[1730440447153,0.22264817,69610.0,69609.0,0.18821854]
[1730440449894,0.22264817,69610.0,69609.0,0.10511854]
[1730440450097,0.22264817,69610.0,69609.0,0.001644]
[1730440451806,0.20916642,69610.0,69609.0,0.001644]
[1730440452231,0.30745019,69610.0,69609.0,0.001644]
[1730440455465,0.24276277,69610.0,69609.0,0.001644]
[1730440459435,0.40199853,69610.0,69609.0,0.001644]
[1730440460978,0.30371476,69610.0,69609.0,0.001644]
[1730440462386,0.38996466,69610.0,69609.0,0.001644]
[1730440464061,0.39002802,69610.0,69609.0,0.001644]
[1730440468833,0.39003148,69610.0,69609.0,0.001644]
[1730440471659,0.62238673,69610.0,69609.0,0.001644]
[1730440471871,0.78244122,69610.0,69609.0,0.001644]
[1730440473161,0.76085619,69610.0,69609.0,0.001644]
[1730440476095,0.67457517,69610.0,69609.0,0.001644]
[1730440477139,0.76085619,69610.0,69609.0,0.001644]
[1730440477451,0.67457517,69610.0,69609.0,0.001644]
[1730440478104,0.67456283,69610.0,69609.0,0.001644]
[1730440481083,0.51531155,69610.0,69609.0,0.001644]
[1730440481318,0.67456318,69610.0,69609.0,0.001644]
[1730440481728,0.67456287,69610.0,69609.0,0.001644]
[1730440483512,0.44218557,69610.0,69609.0,0.001644]
[1730440483844,0.44218582,69610.0,69609.0,0.001644]
[1730440488251,0.44218688,69610.0,69609.0,0.001644]
[1730440493223,0.44218789,69610.0,69609.0,0.001644]
[1730440497964,0.000822,69610.0,69609.0,0.172944]
[1730440498174,0.000822,69610.0,69609.0,0.319476]
[1730440498375,0.000822,69610.0,69609.0,0.3232846]
[1730440499866,0.000822,69610.0,69609.0,0.36629265]
[1730440501304,0.000822,69610.0,69609.0,0.36629238]
[1730440501508,0.000822,69610.0,69609.0,0.3232846]
[1730440525137,0.000822,69610.0,69609.0,0.55763105]
[1730440525378,0.000822,69610.0,69609.0,0.69263105]
[1730440525807,0.000822,69610.0,69609.0,0.90903776]
[1730440526015,0.000822,69610.0,69609.0,0.84475952]
[1730440526924,0.000822,69617.0,69616.0,0.155645]
[1730440527171,0.000822,69617.0,69616.0,0.56636366]
[1730440527384,0.000822,69617.0,69616.0,0.57006044]
[1730440528250,0.001646,69626.0,69625.0,0.5069084]
[1730440528473,0.001646,69626.0,69625.0,0.64536365]
[1730440528690,0.001646,69626.0,69625.0,0.68091912]
[1730440528897,0.001646,69626.0,69625.0,0.67991912]
[1730440529112,0.001646,69626.0,69625.0,0.58402792]
[1730440529523,0.001646,69626.0,69625.0,0.57902792]
[1730440529726,0.001646,69626.0,69625.0,0.58402792]
[1730440529930,0.001646,69626.0,69625.0,0.57902792]
[1730440530361,0.001646,69626.0,69625.0,0.58402792]
[1730440530576,0.001646,69626.0,69625.0,0.57902792]
[1730440531650,0.001646,69626.0,69625.0,0.58402792]
[1730440534538,0.001646,69626.0,69625.0,0.57902792]
[1730440534784,0.001646,69626.0,69625.0,0.55602792]
[1730440540634,0.001646,69626.0,69625.0,0.15018147]
[1730440540843,0.001646,69626.0,69625.0,0.24607267]
[1730440546607,0.001646,69626.0,69625.0,0.15018147]
[1730440554214,0.001646,69626.0,69625.0,0.00655547]
[1730440554640,0.001646,69626.0,69623.0,0.143629]
[1730440554787,0.001646,69626.0,69625.0,0.00652945]
[1730440555018,0.001646,69626.0,69624.0,0.143628]
[1730440555204,0.001646,69626.0,69625.0,0.00652945]
[1730440555404,0.001646,69626.0,69625.0,0.15015545]
[1730440556965,0.14527,69626.0,69625.0,0.00652945]
[1730440557099,0.23747,69626.0,69625.0,0.00652945]
[1730440557313,0.23747,69626.0,69620.0,0.143635]
[1730440557550,0.23747,69626.0,69625.0,0.00652945]
[1730440557780,0.23747,69626.0,69620.0,0.143635]
[1730440557987,0.23747,69626.0,69619.0,0.287276]
[1730440558183,0.23747,69626.0,69621.0,0.00652945]
[1730440558436,0.23747,69626.0,69620.0,0.143634]
[1730440558636,0.23747,69626.0,69622.0,0.00652945]
[1730440558838,0.23747,69626.0,69621.0,0.143634]
[1730440558996,0.23747,69626.0,69623.0,0.00652945]
[1730440559211,0.23747,69626.0,69621.0,0.143634]
[1730440559212,0.09872532,69625.0,69621.0,0.143634]
[1730440559408,0.23747,69626.0,69624.0,0.00652945]
[1730440559621,0.23747,69626.0,69621.0,0.143634]
[1730440560080,0.23747,69626.0,69622.0,0.00652945]
[1730440562044,0.14363,69623.0,69622.0,0.00652945]
[1730440562251,0.093846,69626.0,69618.0,0.14364]
[1730440562471,0.143632,69622.0,69619.0,0.00652945]
[1730440563641,0.143632,69622.0,69617.0,0.145286]
[1730440563840,0.143632,69622.0,69620.0,0.00652945]
[1730440564181,0.143632,69622.0,69621.0,0.00652945]
[1730440564587,0.143632,69622.0,69617.0,0.145286]
[1730440564724,0.143632,69622.0,69621.0,0.00652945]
[1730440564934,0.143632,69622.0,69617.0,0.145286]
[1730440565181,0.143632,69622.0,69621.0,0.00652945]
[1730440565387,0.143632,69622.0,69617.0,0.145286]
[1730440565582,0.05808756,69621.0,69617.0,0.145286]
[1730440565849,0.20172256,69621.0,69617.0,0.145286]
[1730440568528,0.143631,69623.0,69618.0,0.143639]
[1730440568758,0.001646,69626.0,69618.0,0.0977]
[1730440568996,0.143627,69625.0,69619.0,0.287277]
[1730440569857,0.143627,69625.0,69620.0,0.143635]
[1730440571375,0.001646,69626.0,69622.0,0.14363]
[1730440571581,0.001646,69626.0,69619.0,0.287277]
[1730440571783,0.145271,69626.0,69621.0,0.143633]
[1730440571987,0.001646,69626.0,69621.0,0.143633]
[1730440572183,0.143626,69625.0,69622.0,0.00657154]
[1730440572740,0.001646,69626.0,69622.0,0.15020354]
[1730440572987,0.14527,69626.0,69622.0,0.15020354]
[1730440574644,0.143626,69625.0,69622.0,0.00657154]
[1730440577177,0.143626,69625.0,69619.0,0.430914]
[1730440577385,0.143626,69625.0,69623.0,0.00656688]
[1730440577589,0.143626,69625.0,69619.0,0.430914]
[1730440577798,0.143626,69625.0,69624.0,0.00656321]
[1730440578011,0.143626,69625.0,69619.0,0.430914]
[1730440578012,0.143626,69625.0,69620.0,0.143636]
[1730440578221,0.143626,69625.0,69624.0,0.00656315]
[1730440578429,0.143626,69625.0,69620.0,0.143636]
[1730440578658,0.143626,69625.0,69624.0,0.00656315]
[1730440578898,0.143626,69625.0,69620.0,0.143636]
[1730440579111,0.143626,69625.0,69624.0,0.00656315]
[1730440579549,0.143626,69625.0,69620.0,0.143636]
[1730440579770,0.143626,69625.0,69624.0,0.00656315]
[1730440579986,0.143626,69625.0,69620.0,0.143636]
[1730440580199,0.143626,69625.0,69624.0,0.00656511]
[1730440580430,0.143626,69625.0,69620.0,0.143636]
[1730440580702,0.143626,69625.0,69624.0,0.00656511]
[1730440580936,0.143626,69625.0,69620.0,0.143636]
[1730440581378,0.143626,69625.0,69621.0,0.15019911]
[1730440586086,0.144448,69625.0,69621.0,0.15019911]
[1730440587395,0.000822,69625.0,69624.0,0.143628]
[1730440587609,0.000822,69625.0,69622.0,0.287263]
[1730440587610,0.000822,69625.0,69622.0,0.14363]
[1730440588053,0.000822,69625.0,69623.0,0.00656511]
[1730440589154,0.144449,69625.0,69623.0,0.00656511]
[1730440589595,0.144449,69625.0,69624.0,0.00656511]
[1730440590020,0.144449,69625.0,69621.0,0.143634]
[1730440590279,0.144449,69625.0,69624.0,0.00657515]
[1730440590508,0.144449,69625.0,69621.0,0.143634]
[1730440590720,0.144449,69625.0,69624.0,0.00657515]
[1730440591173,0.144449,69625.0,69621.0,0.143634]
[1730440591391,0.144449,69625.0,69624.0,0.00657515]
[1730440591610,0.073749,69625.0,69621.0,0.143634]
[1730440591833,0.001646,69626.0,69624.0,0.00657515]
[1730440592061,0.001646,69626.0,69623.0,0.143629]
[1730440592279,0.001646,69626.0,69625.0,0.00657515]
[1730440592513,0.001646,69626.0,69623.0,0.143629]
[1730440592735,0.001646,69626.0,69625.0,0.00657515]
[1730440593171,0.001646,69626.0,69623.0,0.143629]
[1730440593382,0.001646,69626.0,69625.0,0.00657515]
[1730440593556,0.001646,69626.0,69623.0,0.143629]
[1730440593798,0.001646,69626.0,69625.0,0.00657515]
[1730440593998,0.001646,69626.0,69623.0,0.143629]
[1730440594198,0.001646,69626.0,69625.0,0.00657515]
[1730440594415,0.001646,69626.0,69623.0,0.143629]
[1730440594632,0.001646,69626.0,69625.0,0.00657515]
[1730440594834,0.001646,69626.0,69623.0,0.143629]
[1730440595056,0.001646,69626.0,69621.0,0.287269]
[1730440595994,0.001646,69626.0,69623.0,0.143629]
[1730440596602,0.001646,69626.0,69619.0,0.287277]
[1730440596603,0.001646,69626.0,69624.0,0.143627]
[1730440596775,0.001646,69626.0,69619.0,0.287277]
[1730440597011,0.001646,69626.0,69625.0,0.143626]
[1730440602104,0.001646,69626.0,69625.0,0.15020115]
[1730440610125,0.001646,69626.0,69625.0,0.00657515]
[1730440611180,0.001646,69626.0,69625.0,0.00821915]
[1730440616740,0.14527,69626.0,69625.0,0.00821915]
[1730440616957,0.0643879,69626.0,69625.0,0.00821915]
[1730440617209,0.0643879,69626.0,69625.0,0.00756628]
[1730440617665,0.2080119,69626.0,69625.0,0.00756628]
[1730440618540,0.2080119,69626.0,69625.0,0.001644]
[1730440625585,0.14527,69626.0,69625.0,0.001644]
[1730440625783,0.14527,69626.0,69625.0,0.00757241]
[1730440626367,0.001646,69626.0,69625.0,2.00757241]
[1730440628369,0.14527,69626.0,69625.0,2.00757241]
[1730440640583,0.14527,69626.0,69625.0,2.001644]
[1730440641000,0.14527,69626.0,69625.0,2.00759253]
[1730440643683,0.42876468,69626.0,69625.0,2.00759253]
[1730440643893,0.38492525,69626.0,69625.0,2.00759253]
[1730440644497,0.48492525,69626.0,69625.0,2.00759253]
[1730440644704,0.61860542,69626.0,69625.0,2.00759253]
[1730440644914,0.88568382,69626.0,69625.0,2.00759253]
[1730440647900,0.61860542,69626.0,69625.0,2.00759253]
[1730440652438,0.48492525,69626.0,69625.0,2.00759253]
[1730440657092,0.54954684,69626.0,69625.0,2.00759253]
[1730440658234,0.54953915,69626.0,69625.0,2.00759253]
[1730440658662,0.45333915,69626.0,69625.0,2.00759253]
[1730440660661,0.43179601,69626.0,69625.0,2.00759253]
[1730440660914,0.42679601,69626.0,69625.0,2.00759253]
[1730440661800,0.28834076,69626.0,69625.0,2.10729253]
[1730440666445,0.28833714,69626.0,69625.0,2.10729253]
[1730440671354,0.18833806,69626.0,69625.0,2.10729253]
[1730440672242,0.14527,69626.0,69625.0,2.10729253]
[1730440673329,0.001646,69626.0,69625.0,2.10729253]
[1730440685009,0.001646,69626.0,69625.0,2.25091853]
[1730440685213,0.001646,69626.0,69625.0,2.33351853]
[1730440699168,0.001646,69626.0,69625.0,2.42940973]
[1730440703362,0.01510902,69626.0,69625.0,2.42940973]
[1730440706848,0.001646,69626.0,69625.0,2.42940973]
[1730440719879,0.001646,69626.0,69625.0,2.25091853]
[1730440720099,0.001646,69626.0,69625.0,2.15121853]
[1730440721176,0.01511081,69626.0,69625.0,2.15121853]
[1730440721586,0.01511053,69626.0,69625.0,2.15121853]
[1730440723515,0.01511053,69626.0,69625.0,2.00759253]
[1730440723731,0.01511053,69626.0,69625.0,2.15121853]
[1730440724356,0.01511053,69626.0,69625.0,2.24421853]
[1730440725201,0.001646,69626.0,69625.0,2.24421853]
[1730440725890,0.001646,69626.0,69625.0,2.34010973]
[1730440726306,0.001646,69626.0,69625.0,2.24421853]
[1730440728444,0.001646,69626.0,69625.0,2.34010973]
[1730440728641,0.001646,69626.0,69625.0,2.15121853]
[1730440730373,0.01510943,69626.0,69625.0,2.15121853]
[1730440731036,0.001646,69626.0,69625.0,2.15121853]
[1730440734535,0.001646,69626.0,69625.0,2.00759253]
[1730440741426,0.01510853,69626.0,69625.0,2.00759253]
[1730440741755,0.0150323,69626.0,69625.0,2.00759253]
[1730440743843,0.1586563,69626.0,69625.0,2.00759253]
[1730440745432,0.1586563,69626.0,69625.0,2.001644]
[1730440745852,0.1586563,69626.0,69625.0,2.00824453]
[1730440746742,0.15865941,69626.0,69625.0,2.00824453]
[1730440751394,0.14519377,69626.0,69625.0,2.00824453]
[1730440752539,0.15866057,69626.0,69625.0,2.00824453]
[1730440753377,0.14519377,69626.0,69625.0,2.00824453]
[1730440756775,0.24578922,69626.0,69625.0,2.00824453]
[1730440756988,0.14519377,69626.0,69625.0,2.00824453]
[1730440772470,0.14519377,69626.0,69625.0,2.17814453]
[1730440783690,0.04392052,69628.0,69625.0,2.17814453]
[1730440783904,0.143624,69626.0,69625.0,2.17814453]
[1730440785406,0.143624,69626.0,69625.0,2.09854453]
[1730440785616,0.143624,69626.0,69625.0,2.00824453]
[1730440788074,0.23491243,69626.0,69625.0,2.00824453]
[1730440788512,0.143624,69626.0,69625.0,2.00824453]
[1730440790521,0.1867294,69626.0,69625.0,2.00824453]
[1730440795469,0.18674902,69626.0,69625.0,2.00824453]
[1730440798491,0.143624,69626.0,69625.0,2.00824453]
[1730440799404,0.144446,69626.0,69625.0,2.00824453]
[1730440803742,0.24228244,69626.0,69625.0,2.00824453]
[1730440803964,0.5188083,69626.0,69625.0,2.00824453]
[1730440804185,0.60506345,69626.0,69625.0,2.00824453]
[1730440804403,0.60506276,69626.0,69625.0,2.00824453]
[1730440805478,0.60504443,69626.0,69625.0,2.00824453]
[1730440807282,0.52834443,69626.0,69625.0,2.00824453]
[1730440809043,0.66682173,69626.0,69625.0,2.00824453]
[1730440809258,0.52834443,69626.0,69625.0,2.00824453]
[1730440810979,0.62519398,69626.0,69625.0,2.00824453]
[1730440811207,0.80751922,69626.0,69625.0,2.00824453]
[1730440811628,0.81251922,69626.0,69625.0,2.00824453]
[1730440811845,0.95099652,69626.0,69625.0,2.00824453]
[1730440812065,0.86357128,69626.0,69625.0,2.00824453]
[1730440814762,0.54209398,69626.0,69625.0,2.00824453]
[1730440814995,0.38290125,69626.0,69625.0,2.00824453]
[1730440815211,0.40349194,69626.0,69625.0,2.00824453]
[1730440815438,0.057361,69626.0,69625.0,2.10413573]
[1730440815653,0.057361,69626.0,69625.0,2.42856173]
[1730440815654,0.01428054,69626.0,69625.0,2.42856173]
[1730440816113,0.000822,69626.0,69625.0,2.42856173]
[1730440819215,0.000822,69626.0,69625.0,2.66790818]
[1730440819424,0.000822,69626.0,69625.0,2.69090818]
[1730440819631,0.000822,69626.0,69625.0,2.69590818]
[1730440819844,0.000822,69626.0,69625.0,2.69790818]
[1730440820727,0.000822,69626.0,69625.0,2.69590818]
[1730440821158,0.000822,69626.0,69625.0,2.73881295]
[1730440821373,0.000822,69626.0,69625.0,2.69590818]
[1730440821791,0.000822,69626.0,69625.0,2.76044948]
[1730440822001,0.000822,69626.0,69625.0,2.69590818]
[1730440822213,0.000822,69626.0,69625.0,2.73879602]
[1730440822638,0.000822,69626.0,69625.0,2.74079602]
[1730440822865,0.000822,69626.0,69625.0,2.69790818]
[1730440823073,0.000822,69626.0,69625.0,2.69590818]
[1730440823294,0.000822,69626.0,69625.0,2.73878051]
[1730440823503,0.000822,69626.0,69625.0,2.69590818]
[1730440828966,0.000822,69626.0,69625.0,2.69790818]
[1730440830412,0.000822,69626.0,69625.0,2.69590818]
[1730440830635,0.000822,69626.0,69625.0,2.69790818]
[1730440831703,0.000822,69626.0,69625.0,2.69590818]
[1730440838083,0.000822,69626.0,69625.0,2.60001698]
[1730440838288,0.000822,69626.0,69625.0,2.69590818]
[1730440840075,0.000822,69626.0,69625.0,2.69790818]
[1730440842718,0.19647514,69641.0,69632.0,0.005]
[1730440842950,0.19647514,69641.0,69640.0,0.143595]
[1730440843165,0.27157514,69641.0,69629.0,0.0944]
[1730440843371,0.27157514,69641.0,69635.0,0.143605]
[1730440843372,0.143596,69640.0,69635.0,0.143605]
[1730440843959,0.143596,69640.0,69636.0,0.143603]
[1730440844180,0.143596,69640.0,69635.0,0.0958912]
[1730440844416,0.143596,69640.0,69635.0,0.2394962]
[1730440844648,0.143596,69640.0,69636.0,0.143603]
[1730440845105,0.0751,69641.0,69636.0,0.143603]
[1730440845589,0.01344726,69640.0,69636.0,0.143603]
[1730440845806,0.01344726,69639.0,69636.0,0.143603]
[1730440846042,0.01344726,69639.0,69635.0,0.2394962]
[1730440846485,0.143596,69640.0,69635.0,0.2394962]
[1730440846739,0.01344822,69639.0,69636.0,0.143603]
[1730440846956,0.143596,69640.0,69636.0,0.143603]
[1730440847182,0.0134514,69639.0,69636.0,0.143603]
[1730440847400,0.0134514,69638.0,69637.0,0.00752241]
[1730440848686,0.143596,69640.0,69637.0,0.00752241]
[1730440848896,0.01346172,69638.0,69637.0,0.00752241]
[1730440849104,0.02692344,69638.0,69637.0,0.00752241]
[1730440849750,0.17052244,69638.0,69637.0,0.00752241]
[1730440850167,0.143604,69636.0,69632.0,0.143611]
[1730440850431,0.01346172,69635.0,69632.0,0.0958912]
[1730440850641,0.143603,69637.0,69633.0,0.00752241]
[1730440850843,0.0134652,69636.0,69633.0,0.00752241]
[1730440851050,0.0134652,69635.0,69633.0,0.00752241]
[1730440851262,0.143603,69637.0,69633.0,0.00752241]
[1730440851466,0.01346464,69636.0,69633.0,0.00752241]
[1730440851710,0.01346464,69635.0,69633.0,0.00752241]
[1730440851911,0.143603,69637.0,69633.0,0.00752241]
[1730440852124,0.01346464,69636.0,69633.0,0.00752241]
[1730440852334,0.143603,69637.0,69633.0,0.00752241]
[1730440852539,0.01346464,69635.0,69633.0,0.00752241]
[1730440852745,0.143603,69637.0,69633.0,0.00752241]
[1730440852953,0.01346405,69636.0,69633.0,0.00752241]
[1730440853155,0.01346405,69635.0,69633.0,0.00752241]
[1730440853376,0.143603,69637.0,69633.0,0.00752241]
[1730440853587,0.01346362,69636.0,69633.0,0.00752241]
[1730440853793,0.01346362,69635.0,69633.0,0.00752241]
[1730440853946,0.143603,69637.0,69633.0,0.00752241]
[1730440854151,0.0134634,69636.0,69633.0,0.00752241]
[1730440854353,0.0134634,69635.0,69633.0,0.00752241]
[1730440854558,0.01346302,69634.0,69633.0,0.00752241]
[1730440857006,0.01346302,69634.0,69633.0,0.00916641]
[1730440858262,0.143603,69637.0,69633.0,0.00916641]
[1730440858461,0.01345956,69636.0,69633.0,0.00916641]
[1730440858681,0.0751,69641.0,69633.0,0.15277541]
[1730440858883,0.1436,69638.0,69633.0,0.15277541]
[1730440859052,0.01345973,69637.0,69633.0,0.15277541]
[1730440859256,0.01345973,69636.0,69633.0,0.15277541]
[1730440859459,0.01345978,69635.0,69633.0,0.15277541]
[1730440859673,0.143602,69637.0,69633.0,0.15277541]
[1730440859990,0.01345952,69636.0,69633.0,0.15277541]
[1730440860196,0.287165,69647.0,69635.0,0.1938912]
[1730440860345,0.01345917,69643.0,69640.0,0.0958912]
[1730440860589,0.01345917,69642.0,69641.0,0.143593]
[1730440860826,0.01345917,69642.0,69641.0,0.24699332]
[1730440861932,0.000822,69644.0,69641.0,0.24699332]
[1730440861933,0.000822,69644.0,69643.0,0.143589]
[1730440862354,0.01428119,69644.0,69643.0,0.143589]
[1730440862562,0.01428119,69644.0,69643.0,0.15109812]
[1730440865410,0.000822,69644.0,69643.0,0.15109812]
[1730440865668,0.01428222,69644.0,69643.0,0.15109812]
[1730440866743,0.01428222,69644.0,69643.0,0.00750912]
[1730440866948,0.35653784,69644.0,69643.0,0.00750912]
[1730440867183,0.143593,69641.0,69636.0,0.143603]
[1730440867390,0.21295084,69644.0,69636.0,0.143603]
[1730440867391,0.15705622,69640.0,69636.0,0.143603]
[1730440867608,0.01346022,69639.0,69637.0,0.10338196]
[1730440867832,0.01346022,69638.0,69637.0,0.10338196]
[1730440868755,0.01346022,69638.0,69637.0,0.24698296]
[1730440869438,0.01346022,69638.0,69637.0,0.10338196]
[1730440869676,0.01346022,69638.0,69637.0,0.24698296]
[1730440870941,0.01346022,69638.0,69637.0,0.24862696]
[1730440872860,0.287162,69647.0,69641.0,0.005]
[1730440873090,0.143582,69647.0,69642.0,0.0075032]
[1730440874188,0.287157,69649.0,69642.0,0.0075032]
[1730440874391,0.1,69648.0,69642.0,0.0075032]